bitfinex-derivatives/quotes_BTCF0:USTF0_20241122
["timestamp","ask_amount","ask_price","bid_price","bid_amount"]
[1732306590518,1.61582796,99286.0,99283.0,0.3608]
[1732306590713,1.61486795,99286.0,99283.0,0.3608]
[1732306592128,1.61486795,99286.0,99283.0,0.411108]
[1732306592319,1.61486795,99286.0,99283.0,0.3608]
[1732306592928,1.66517395,99286.0,99283.0,0.3608]
[1732306593231,1.61486795,99286.0,99283.0,0.3608]
[1732306595025,1.61486795,99286.0,99283.0,0.411108]
[1732306595327,1.61486795,99286.0,99284.0,0.050307]
[1732306595526,1.61486795,99286.0,99283.0,0.36132]
[1732306595835,1.61486795,99286.0,99283.0,0.3608]
[1732306596126,1.61486795,99286.0,99283.0,0.411108]
[1732306597332,1.61486795,99286.0,99285.0,0.050307]
[1732306597531,1.61486795,99286.0,99283.0,0.36136]
[1732306597830,1.61486795,99286.0,99283.0,0.3608]
[1732306598228,1.61486795,99286.0,99284.0,0.00210901]
[1732306599226,1.61486795,99286.0,99285.0,0.00210901]
[1732306602321,1.19770795,99286.0,99285.0,0.41321601]
[1732306602534,0.92388467,99286.0,99285.0,0.71537601]
[1732306602826,0.81298467,99286.0,99285.0,1.01537601]
[1732306603135,0.08953522,99300.0,99299.0,0.0503]
[1732306603430,0.09092326,99300.0,99299.0,0.41320901]
[1732306603617,0.09092326,99300.0,99299.0,1.01532901]
[1732306604727,0.09092326,99300.0,99299.0,0.71532901]
[1732306606225,1.23052167,99308.0,99307.0,0.050296]
[1732306606432,1.23052167,99308.0,99307.0,0.411096]
[1732306606625,1.23052167,99308.0,99307.0,0.713176]
[1732306607228,1.23052167,99308.0,99307.0,0.71528501]
[1732306609623,1.23052167,99308.0,99307.0,0.73535994]
[1732306610136,1.23052167,99308.0,99307.0,0.43327994]
[1732306611439,1.23052167,99308.0,99307.0,0.41320501]
[1732306611735,1.23052167,99308.0,99307.0,0.00210901]
[1732306611932,1.23052167,99308.0,99307.0,0.36290901]
[1732306612133,1.23052167,99308.0,99307.0,0.71528501]
[1732306613233,1.23052167,99308.0,99307.0,0.41320501]
[1732306615029,1.23052167,99308.0,99307.0,0.71528501]
[1732306616829,1.23052167,99308.0,99307.0,0.7168005]
[1732306617927,1.23052167,99308.0,99307.0,1.0776005]
[1732306618127,1.23052167,99308.0,99307.0,1.3776005]
[1732306619139,0.7471464,99308.0,99307.0,1.3776005]
[1732306619328,0.6898164,99308.0,99307.0,1.3776005]
[1732306619640,0.6898164,99308.0,99307.0,1.40261898]
[1732306620044,0.6381564,99308.0,99307.0,1.40261898]
[1732306620239,0.6331564,99308.0,99307.0,1.39767551]
[1732306620843,0.6291564,99308.0,99307.0,1.39767551]
[1732306621140,0.6291564,99308.0,99307.0,1.40262751]
[1732306621330,0.3256827,99308.0,99307.0,1.40262751]
[1732306621531,1.33604408,99329.0,99328.0,0.050285]
[1732306621737,1.33512408,99329.0,99328.0,0.7755095]
[1732306621934,1.33512408,99329.0,99328.0,1.0775495]
[1732306621935,1.16123508,99329.0,99328.0,1.0775495]
[1732306622132,1.16123508,99329.0,99328.0,1.3775495]
[1732306622133,0.34142751,99329.0,99328.0,1.3775495]
[1732306622339,0.22374451,99329.0,99328.0,1.3775495]
[1732306622543,0.02626751,99329.0,99328.0,1.38262346]
[1732306622840,5.1e-07,99329.0,99328.0,1.38262346]
[1732306623042,1.43267728,99351.0,99350.0,0.050274]
[1732306623340,1.43267728,99351.0,99350.0,0.890034]
[1732306623539,1.1817722,99351.0,99350.0,1.491994]
[1732306623845,1.1817722,99351.0,99350.0,1.3774585]
[1732306624543,1.1767722,99351.0,99350.0,1.3774585]
[1732306624746,1.1767722,99351.0,99350.0,0.7754985]
[1732306625133,1.1767722,99351.0,99350.0,1.3774585]
[1732306625334,1.1767722,99351.0,99350.0,0.7754985]
[1732306628637,1.1767722,99351.0,99350.0,0.7955709]
[1732306629035,1.1767722,99351.0,99350.0,0.4347709]
[1732306629332,1.3695729,99351.0,99350.0,0.00203569]
[1732306630135,1.1767722,99351.0,99350.0,0.41310969]
[1732306633436,1.1257872,99351.0,99350.0,0.41310969]
[1732306633651,1.1207872,99351.0,99350.0,0.41310969]
[1732306634046,1.0586692,99351.0,99350.0,0.41310969]
[1732306634346,0.9335557,99351.0,99350.0,1.01506969]
[1732306634644,0.9335557,99351.0,99350.0,0.41310969]
[1732306636847,0.9335557,99351.0,99350.0,0.43316989]
[1732306638349,1.1263564,99351.0,99346.0,0.00052]
[1732306638539,1.1263564,99351.0,99342.0,0.3608]
[1732306638540,0.1928007,99347.0,99342.0,0.00052]
[1732306638745,0.5536007,99343.0,99331.0,0.050283]
[1732306638945,0.1928007,99335.0,99331.0,0.050283]
[1732306639148,0.1928007,99332.0,99330.0,0.00150977]
[1732306639453,0.1928007,99331.0,99330.0,0.00150977]
[1732306640166,0.1928007,99331.0,99329.0,0.050284]
[1732306640366,0.1928007,99330.0,99329.0,0.050284]
[1732306640870,0.1928007,99327.0,99320.0,0.09717551]
[1732306641073,0.5536007,99321.0,99320.0,0.14746451]
[1732306641258,0.5536007,99321.0,99320.0,0.050289]
[1732306641456,0.5536007,99321.0,99316.0,0.05029]
[1732306641662,0.3608,99321.0,99316.0,0.05029]
[1732306641867,0.1928007,99317.0,99316.0,0.05029]
[1732306644058,0.3608,99321.0,99313.0,0.02006867]
[1732306644370,0.3608,99321.0,99320.0,0.050289]
[1732306644962,0.3608,99324.0,99323.0,0.050287]
[1732306645162,0.1928007,99325.0,99324.0,0.050287]
[1732306645564,0.5536007,99325.0,99324.0,0.050287]
[1732306650974,0.5536007,99325.0,99318.0,0.05029]
[1732306651269,0.5536007,99325.0,99313.0,0.07036067]
[1732306651270,0.1928007,99314.0,99313.0,0.07036067]
[1732306651472,0.5536007,99314.0,99313.0,0.07036067]
[1732306653559,0.5536007,99314.0,99313.0,0.02006867]
[1732306654561,0.5536007,99314.0,99303.0,0.3808602]
[1732306654767,0.1928007,99307.0,99303.0,0.3813802]
[1732306657361,0.1928007,99307.0,99303.0,0.00052]
[1732306657560,0.1928007,99307.0,99284.0,0.3608]
[1732306657761,0.1928007,99307.0,99280.0,0.09717551]
[1732306657964,0.11792,99310.0,99280.0,0.09717551]
[1732306657965,0.3608,99281.0,99280.0,0.09717551]
[1732306658182,0.3608,99281.0,99278.0,0.0738]
[1732306661077,0.3608,99281.0,99280.0,0.02007265]
[1732306661278,0.5536007,99281.0,99280.0,0.02007265]
[1732306661474,0.5536007,99281.0,99264.0,0.02007265]
[1732306661673,0.1928007,99269.0,99264.0,0.02007265]
[1732306667187,0.3608,99281.0,99264.0,0.02007265]
[1732306667377,0.1928007,99276.0,99271.0,0.09717551]
[1732306668281,0.050301,99297.0,99271.0,0.09717551]
[1732306668282,0.3608,99302.0,99271.0,0.21509551]
[1732306668484,0.0399,99290.0,99280.0,0.09717551]
[1732306669284,0.0399,99290.0,99280.0,0.14748451]
[1732306669479,0.01162207,99290.0,99280.0,0.09717551]
[1732306671277,0.3608,99284.0,99280.0,0.09717551]
[1732306671885,0.1928007,99281.0,99272.0,0.43422]
[1732306672082,0.1928007,99279.0,99272.0,0.4337]
[1732306672385,0.3608,99284.0,99272.0,0.4337]
[1732306672386,0.2431137,99273.0,99272.0,0.3608]
[1732306672584,0.1928007,99273.0,99272.0,0.3608]
[1732306673090,0.1928007,99273.0,99260.0,0.09717551]
[1732306673289,0.3608,99265.0,99260.0,0.09717551]
[1732306674976,0.3608,99265.0,99253.0,0.00504785]
[1732306675576,0.5536007,99265.0,99250.0,0.09717551]
[1732306675791,0.5536007,99265.0,99248.0,0.02007265]
[1732306676486,0.1928007,99259.0,99248.0,0.02007265]
[1732306677290,0.1928007,99259.0,99249.0,0.09717551]
[1732306677485,0.12374941,99259.0,99249.0,0.09717551]
[1732306677996,0.0116,99262.0,99254.0,0.47852]
[1732306678197,0.3724,99274.0,99254.0,0.47904]
[1732306678488,0.12374941,99264.0,99260.0,0.09717551]
[1732306678688,0.3608,99262.0,99261.0,0.0692]
[1732306679587,0.3724,99274.0,99261.0,0.0692]
[1732306679788,0.12374941,99266.0,99261.0,0.0692]
[1732306680001,0.3608,99262.0,99261.0,0.0692]
[1732306681691,0.3608,99262.0,99258.0,0.02159384]
[1732306683085,0.12374941,99259.0,99258.0,0.02159384]
[1732306684292,0.12374941,99259.0,99258.0,0.0015105]
[1732306685194,0.13534941,99259.0,99258.0,0.0015105]
[1732306687996,0.0662952,99259.0,99258.0,0.0015105]
[1732306688996,0.0116,99259.0,99258.0,0.0015105]
[1732306689200,0.3724,99262.0,99261.0,0.050319]
[1732306689398,0.3724,99262.0,99258.0,0.0015105]
[1732306689399,0.0546952,99261.0,99259.0,0.05032]
[1732306690099,0.0116,99262.0,99261.0,0.050319]
[1732306690490,0.0694,99277.0,99265.0,0.050317]
[1732306690491,0.3724,99274.0,99265.0,0.050317]
[1732306690797,0.0546952,99266.0,99265.0,0.050317]
[1732306691198,0.4154952,99266.0,99265.0,0.050317]
[1732306695802,0.4154952,99266.0,99258.0,0.02159282]
[1732306696016,0.0546952,99259.0,99258.0,0.02159282]
[1732306697103,0.0662952,99259.0,99258.0,0.02159282]
[1732306697310,0.0662952,99259.0,99258.0,0.07191282]
[1732306698009,0.0662952,99259.0,99258.0,0.02159282]
[1732306698397,0.02301944,99259.0,99258.0,0.02159282]
[1732306703324,0.0116,99259.0,99258.0,0.07191282]
[1732306706218,0.3724,99263.0,99262.0,0.050318]
[1732306708517,0.0116,99263.0,99262.0,0.050318]
[1732306709013,0.3608,99266.0,99262.0,0.050318]
[1732306709014,0.3608,99266.0,99265.0,0.050317]
[1732306709821,0.3608,99266.0,99265.0,0.167757]
[1732306710821,0.3608,99266.0,99265.0,0.11744]
[1732306713215,0.37221944,99266.0,99265.0,0.11744]
[1732306714923,0.73301944,99266.0,99265.0,0.11744]
[1732306716921,0.7176,99266.0,99265.0,0.167757]
[1732306717126,0.3568,99266.0,99265.0,0.167757]
[1732306717427,0.3568,99266.0,99265.0,0.17270032]
[1732306722326,0.3528,99266.0,99265.0,0.167757]
[1732306722922,0.3528,99266.0,99265.0,0.17274751]
[1732306725430,0.3488,99266.0,99265.0,0.167757]
[1732306725930,0.3488,99266.0,99265.0,0.17289109]
[1732306727032,0.26720393,99266.0,99265.0,0.17289109]
[1732306729732,0.3608,99272.0,99265.0,0.17289109]
[1732306729934,0.01141944,99271.0,99265.0,0.17289109]
[1732306730128,0.3608,99272.0,99259.0,0.0688]
[1732306730328,0.01141944,99262.0,99260.0,0.00491736]
[1732306730628,0.01141944,99262.0,99258.0,0.02159282]
[1732306731018,0.01141944,99262.0,99258.0,0.02663418]
[1732306731233,0.01141944,99262.0,99258.0,0.02159282]
[1732306731837,0.01141944,99262.0,99258.0,0.02666781]
[1732306732019,0.01141944,99262.0,99258.0,0.02660406]
[1732306732825,0.3608,99259.0,99258.0,0.02660406]
[1732306733627,0.37221944,99259.0,99258.0,0.02159282]
[1732306733933,0.42253944,99259.0,99258.0,0.02008232]
[1732306734230,0.37221944,99259.0,99245.0,0.02008334]
[1732306734530,0.37221944,99259.0,99238.0,0.00151138]
[1732306734531,0.37221944,99246.0,99238.0,0.00151138]
[1732306734730,0.37221944,99239.0,99238.0,0.00151138]
[1732306734934,0.29058666,99239.0,99238.0,0.00151138]
[1732306739931,0.29058666,99239.0,99229.0,0.02008334]
[1732306740134,0.3608,99230.0,99229.0,0.02008334]
[1732306741127,0.3608,99230.0,99229.0,0.07041834]
[1732306741834,0.3608,99230.0,99229.0,0.37273834]
[1732306742134,0.01141944,99242.0,99229.0,0.50291151]
[1732306742438,0.01141944,99242.0,99241.0,0.050329]
[1732306743540,0.3608,99257.0,99241.0,0.713409]
[1732306743736,0.01141944,99255.0,99253.0,0.050323]
[1732306743935,0.01141944,99255.0,99247.0,0.050326]
[1732306744133,0.01141944,99255.0,99248.0,0.11704]
[1732306744629,0.01141944,99255.0,99249.0,0.3608]
[1732306744834,0.01141944,99255.0,99253.0,0.050323]
[1732306745036,0.01141944,99255.0,99249.0,0.3608]
[1732306745332,0.3608,99257.0,89627.0,0.00012]
[1732306745333,0.01141944,99250.0,99239.0,0.3608]
[1732306745528,0.0737,99254.0,99239.0,0.3608]
[1732306745734,0.0737,99254.0,99243.0,0.050327]
[1732306746133,0.37221944,99244.0,99240.0,0.09718794]
[1732306746333,0.01141944,99241.0,99230.0,0.14752194]
[1732306746533,0.3608,99244.0,99229.0,0.02559151]
[1732306746534,0.1416,99243.0,99229.0,0.02008334]
[1732306746734,0.01141944,99230.0,99229.0,0.02008334]
[1732306746937,0.01141944,99230.0,99223.0,0.00151146]
[1732306747139,0.37221944,99224.0,99223.0,0.00151146]
[1732306747338,0.01141944,99224.0,99223.0,0.00151146]
[1732306747537,0.37221944,99224.0,99223.0,0.00151146]
[1732306749240,0.37221944,99224.0,99207.0,0.0200864]
[1732306749546,0.3608,99209.0,99207.0,0.0200864]
[1732306749735,0.1427,99208.0,99207.0,0.0200864]
[1732306751940,0.1427,99208.0,99207.0,0.0704324]
[1732306753139,0.1427,99208.0,99203.0,0.00151147]
[1732306754138,0.3608,99212.0,99207.0,0.08164959]
[1732306754339,0.3608,99212.0,99211.0,0.08164959]
[1732306754843,0.3608,99212.0,99203.0,0.00151147]
[1732306755049,0.3608,99212.0,99206.0,0.08164959]
[1732306755249,0.3608,99216.0,99211.0,0.08164959]
[1732306755551,0.3608,99216.0,99212.0,0.08164959]
[1732306755941,0.3608,99216.0,99203.0,0.00151147]
[1732306757350,0.47788,99216.0,99203.0,0.00151147]
[1732306759652,0.411148,99204.0,99203.0,0.00151147]
[1732306759855,0.411148,99204.0,99200.0,0.1]
[1732306759856,0.050349,99201.0,99200.0,0.1]
[1732306760054,0.411149,99201.0,99200.0,0.1]
[1732306760249,0.05035,99200.0,99172.0,0.3608]
[1732306760445,0.3608,99181.0,99174.0,0.050363]
[1732306760749,0.3608,99181.0,99172.0,0.3608]
[1732306760750,0.3608,99181.0,99175.0,0.050362]
[1732306760948,0.3608,99181.0,99172.0,0.3608]
[1732306761353,0.3608,99181.0,99176.0,0.050362]
[1732306761659,0.3608,99181.0,99172.0,0.3608]
[1732306761956,0.3608,99181.0,99172.0,0.411164]
[1732306762660,0.3608,99181.0,99172.0,0.3608]
[1732306763162,0.3608,99181.0,99180.0,0.02009442]
[1732306763651,0.3608,99201.0,99181.0,0.050359]
[1732306763852,0.3608,99201.0,99182.0,0.050359]
[1732306764046,0.3608,99201.0,99190.0,0.09718794]
[1732306764454,0.3608,99201.0,99191.0,0.050354]
[1732306764662,0.3608,99201.0,99191.0,0.078]
[1732306764962,0.3608,99201.0,99195.0,0.050352]
[1732306765347,0.3608,99201.0,99191.0,0.128354]
[1732306765655,0.3608,99201.0,99192.0,0.050354]
[1732306765960,0.3608,99201.0,99191.0,0.078]
[1732306767054,0.3608,99201.0,99190.0,0.09718794]
[1732306767255,0.3608,99191.0,99181.0,0.1513]
[1732306767463,0.3608,99184.0,99181.0,0.1513]
[1732306768257,0.3608,99201.0,99181.0,0.1513]
[1732306768558,0.3608,99182.0,99181.0,0.1513]
[1732306769460,0.3608,99182.0,99181.0,0.0775]
[1732306769959,0.3608,99182.0,99180.0,0.02009442]
[1732306773958,0.0787,99189.0,99180.0,0.02009442]
[1732306774161,0.3608,99191.0,99180.0,0.02009442]
[1732306774368,0.3608,99191.0,99181.0,0.0786]
[1732306775255,0.3608,99182.0,99181.0,0.0786]
[1732306775862,0.3608,99182.0,99180.0,0.02009442]
[1732306776757,0.3608,99182.0,99156.0,0.050372]
[1732306776952,0.29168756,99172.0,99160.0,0.09718794]
[1732306778157,0.65248756,99172.0,99148.0,0.02009442]
[1732306778369,0.3608,99160.0,99148.0,0.02009442]
[1732306778757,0.3608,99160.0,99156.0,0.02009972]
[1732306779459,0.0729,99159.0,99156.0,0.02009972]
[1732306779764,0.0729,99159.0,99142.0,0.0801]
[1732306780063,0.0729,99159.0,99144.0,0.050378]
[1732306780267,0.0729,99159.0,99146.0,0.411177]
[1732306780458,0.0729,99159.0,99146.0,0.411777]
[1732306780659,0.0729,99159.0,99146.0,0.3614]
[1732306782171,0.0729,99159.0,99146.0,0.38149972]
[1732306782567,0.0729,99159.0,99147.0,0.050377]
[1732306782871,0.0729,99159.0,99148.0,0.050376]
[1732306783966,0.0729,99159.0,99150.0,0.050375]
[1732306784166,0.0729,99159.0,99151.0,0.050375]
[1732306784364,0.3608,99160.0,99149.0,0.09718794]
[1732306785057,0.0782,99170.0,99156.0,0.050372]
[1732306785256,0.0782,99170.0,99151.0,0.050375]
[1732306785467,0.3608,99160.0,99149.0,0.09718794]
[1732306785668,0.3608,99160.0,99151.0,0.050374]
[1732306786565,0.0782,99170.0,99149.0,0.09718794]
[1732306786768,0.0782,99170.0,99160.0,0.09718794]
[1732306787662,0.00151281,99180.0,99160.0,0.09718794]
[1732306787862,0.00151281,99180.0,99170.0,0.09718794]
[1732306788368,0.00151281,99180.0,99174.0,0.050363]
[1732306788563,0.00151281,99180.0,99170.0,0.14755294]
[1732306788867,0.00151281,99180.0,99170.0,0.09718794]
[1732306789064,0.00151281,99180.0,99174.0,0.050363]
[1732306789261,0.3608,99182.0,99175.0,0.050362]
[1732306789467,0.3608,99182.0,99170.0,0.09718794]
[1732306789964,0.3608,99182.0,99175.0,0.050362]
[1732306790568,0.3608,99182.0,99170.0,0.09718794]
[1732306791268,0.3608,99182.0,99165.0,0.0704]
[1732306791474,0.0758,99181.0,99165.0,0.0704]
[1732306791670,0.148,99181.0,99150.0,0.09718794]
[1732306791872,0.148,99181.0,99160.0,0.09718794]
[1732306792375,0.148,99181.0,99161.0,0.124669]
[1732306792570,0.148,99181.0,99161.0,0.0743]
[1732306792767,0.3608,99182.0,99173.0,0.02010123]
[1732306793273,0.3608,99182.0,99180.0,0.05036]
[1732306793577,0.3608,99182.0,99174.0,0.0747]
[1732306795068,0.3608,99178.0,99174.0,0.0747]
[1732306795266,0.3608,99178.0,99177.0,0.050361]
[1732306796775,0.3608,99203.0,99177.0,0.00498474]
[1732306797071,0.3608,99203.0,99180.0,0.09718794]
[1732306797282,0.3608,99185.0,99180.0,0.09718794]
[1732306797579,0.3608,99185.0,99176.0,0.1168]
[1732306797972,0.001,99181.0,99176.0,0.1168]
[1732306798970,0.3608,99185.0,99176.0,0.1168]
[1732306798971,0.001,99179.0,99176.0,0.1168]
[1732306799178,0.3608,99177.0,99176.0,0.1168]
[1732306799576,0.3608,99177.0,99174.0,0.0747]
[1732306800174,0.001,99176.0,99174.0,0.0747]
[1732306800367,0.3608,99177.0,99174.0,0.0747]
[1732306801678,0.3608,99185.0,99174.0,0.0747]
[1732306802578,0.3608,99185.0,99179.0,0.05036]
[1732306802777,0.3608,99185.0,99174.0,0.0747]
[1732306802979,0.3608,99185.0,99177.0,0.050361]
[1732306803175,0.3608,99196.0,99175.0,0.19437588]
[1732306803477,0.3608,99196.0,99186.0,0.09718794]
[1732306803667,0.3608,99196.0,99176.0,0.1164]
[1732306803668,0.3608,99196.0,99187.0,0.0714]
[1732306804280,0.3608,99196.0,99174.0,0.43602]
[1732306804472,0.3608,99185.0,99174.0,0.0747]
[1732306804668,0.3608,99175.0,99174.0,0.0747]
[1732306805073,0.3608,99175.0,99173.0,0.02010123]
[1732306805276,0.050365,99171.0,99137.0,0.050382]
[1732306805471,0.050365,99171.0,99119.0,0.2368]
[1732306805472,0.3608,99160.0,99128.0,0.050386]
[1732306805670,0.3608,99153.0,99130.0,0.09718794]
[1732306805871,0.830174,99153.0,99130.0,0.09718794]
[1732306806077,0.70449233,99153.0,99126.0,0.2224]
[1732306806277,0.65411833,99153.0,99113.0,0.00504529]
[1732306806582,0.27910214,99136.0,99112.0,0.050394]
[1732306806774,0.27910214,99136.0,99111.0,0.228]
[1732306806775,0.3608,99127.0,99111.0,0.228]
[1732306807077,0.3608,99127.0,99111.0,0.151]
[1732306807783,0.3608,99127.0,99112.0,0.050394]
[1732306807973,0.0712,99135.0,99121.0,0.3608]
[1732306808283,0.0712,99135.0,99117.0,0.09718794]
[1732306808780,0.0712,99135.0,99119.0,0.05039]
[1732306809275,0.0712,99135.0,99116.0,0.3608]
[1732306809478,0.0712,99135.0,99112.0,0.11644]
[1732306810277,0.0712,99135.0,99126.0,0.02010353]
[1732306811073,0.3608,99127.0,99126.0,0.02010353]
[1732306813288,0.27907249,99127.0,99126.0,0.02010353]
[1732306813478,0.27907249,99127.0,99110.0,0.09718794]
[1732306813479,0.58171249,99127.0,99110.0,0.02010353]
[1732306813781,0.27907249,99127.0,99110.0,0.02010353]
[1732306814187,0.2099175,99127.0,99110.0,0.02010353]
[1732306814585,0.0712,99135.0,99122.0,0.050389]
[1732306814788,0.0712,99135.0,99119.0,0.02011264]
[1732306814789,0.18768,99135.0,99119.0,0.02011264]
[1732306815287,0.09718794,99130.0,99119.0,0.02011264]
[1732306815590,0.3608,99128.0,99119.0,0.02011264]
[1732306816090,0.3608,99128.0,99110.0,0.02010353]
[1732306816680,0.3608,99128.0,99110.0,0.11729147]
[1732306817276,0.11648,99127.0,99114.0,0.05039]
[1732306817480,0.11648,99127.0,99110.0,0.11729147]
[1732306818091,0.11648,99127.0,99111.0,0.050391]
[1732306818678,0.3608,99128.0,99111.0,0.050391]
[1732306819085,0.3608,99128.0,99110.0,0.11729147]
[1732306820889,0.3608,99128.0,99122.0,0.050385]
[1732306821093,0.0712,99135.0,99121.0,0.3608]
[1732306821393,0.0712,99135.0,99113.0,0.11648]
[1732306822286,0.3608,99128.0,99113.0,0.11648]
[1732306822488,0.34203004,99128.0,99110.0,0.02010353]
[1732306822687,0.050383,99127.0,99110.0,0.02010353]
[1732306822883,0.34203004,99128.0,99110.0,0.02010353]
[1732306823491,0.34203004,99128.0,99110.0,0.11729147]
[1732306823989,0.34203004,99128.0,99118.0,0.14757894]
[1732306824486,0.0712,99135.0,99118.0,0.09718794]
[1732306824687,0.0712,99135.0,99118.0,0.02011452]
[1732306824894,0.00212662,99127.0,99118.0,0.02011452]
[1732306825992,0.00212662,99123.0,99118.0,0.02011452]
[1732306826893,0.27910214,99136.0,99121.0,0.35867338]
[1732306827104,0.27910214,99136.0,99125.0,0.09718794]
[1732306827402,0.0712,99147.0,99131.0,0.3608]
[1732306827592,0.0712,99147.0,99137.0,0.09718794]
[1732306828905,0.3608,99143.0,99137.0,0.09718794]
[1732306830399,0.47836001,99159.0,99137.0,0.09718794]
[1732306830701,0.47836001,99159.0,99129.0,0.36136]
[1732306830702,0.3608,99150.0,99149.0,0.09718794]
[1732306830896,0.3608,99150.0,99142.0,0.050379]
[1732306831102,0.4369,99159.0,99142.0,0.126279]
[1732306831497,0.3608,99145.0,99142.0,0.0759]
[1732306832201,0.3608,99145.0,99129.0,0.36283315]
[1732306832395,0.27908414,99145.0,99129.0,0.36231315]
[1732306834202,0.3608,99150.0,99129.0,0.41269915]
[1732306834502,0.3608,99150.0,99130.0,0.050385]
[1732306834998,0.3608,99150.0,99129.0,0.36283315]
[1732306835206,0.45798794,99150.0,99129.0,0.36231315]
[1732306835404,0.45798794,99150.0,99129.0,0.00151315]
[1732306835705,0.3608,99136.0,99129.0,0.00151315]
[1732306836298,0.0765,99135.0,99129.0,0.00151315]
[1732306837202,0.0765,99135.0,99118.0,0.3608]
[1732306837404,0.050384,99134.0,99118.0,0.3608]
[1732306837609,0.0765,99135.0,99118.0,0.3608]
[1732306837801,0.126883,99135.0,99118.0,0.3608]
[1732306838515,0.0765,99135.0,99118.0,0.3608]
[1732306838807,0.0765,99135.0,99123.0,0.02011352]
[1732306840198,0.0765,99135.0,99124.0,0.0701]
[1732306843908,0.0765,99135.0,99129.0,0.3608]
[1732306844211,0.0765,99135.0,99124.0,0.0701]
[1732306844212,0.0765,99135.0,99124.0,0.120488]
[1732306844407,0.0765,99135.0,99124.0,0.0701]
[1732306845110,0.3608,99134.0,99124.0,0.0701]
[1732306846614,0.3608,99134.0,99123.0,0.02011352]
[1732306846808,0.050384,99133.0,99123.0,0.02011352]
[1732306847014,0.050391,99119.0,99118.0,0.00052]
[1732306847211,0.050397,99108.0,99107.0,0.02067352]
[1732306847515,0.2609627,99108.0,99107.0,0.02011352]
[1732306847717,0.2146968,99108.0,99107.0,0.02011352]
[1732306849121,0.2146968,99108.0,99100.0,0.1]
[1732306850712,0.3608,99108.0,99100.0,0.1]
[1732306851313,0.411197,99108.0,99100.0,0.1]
[1732306851511,0.3608,99108.0,99100.0,0.1]
[1732306851711,0.050397,99107.0,99100.0,0.1]
[1732306851916,0.3608,99108.0,99100.0,0.1]
[1732306854119,0.411197,99108.0,99100.0,0.1]
[1732306855623,0.29162414,99108.0,99100.0,0.1]
[1732306857027,0.0752,99112.0,99107.0,0.3608]
[1732306857227,0.3608,99134.0,99120.0,0.05039]
[1732306857415,0.072,99133.0,99126.0,0.3608]
[1732306857620,0.072,99133.0,99122.0,0.3608]
[1732306857919,0.09718794,99132.0,99111.0,0.00052]
[1732306858122,0.05039,99121.0,99101.0,0.3608]
[1732306858324,0.09718794,99121.0,99101.0,0.3608]
[1732306858523,0.09718794,99121.0,99106.0,0.050397]
[1732306858831,0.09718794,99121.0,99109.0,0.3608]
[1732306859326,0.3608,99110.0,99100.0,0.1]
[1732306859513,0.050397,99108.0,99100.0,0.1]
[1732306859717,0.050398,99106.0,99100.0,0.1]
[1732306860225,0.2617,99109.0,99100.0,0.1]
[1732306861220,0.050397,99107.0,99100.0,0.1]
[1732306861823,0.2617,99109.0,99100.0,0.1]
[1732306862023,0.312096,99109.0,99100.0,0.1]
[1732306862229,0.0504,99101.0,99100.0,0.1]
[1732306862422,0.050398,99107.0,99100.0,0.1]
[1732306862728,0.050398,99106.0,99100.0,0.1]
[1732306862930,0.2617,99109.0,99100.0,0.1]
[1732306863132,0.2617,99109.0,99100.0,0.4608]
[1732306863322,0.312096,99109.0,99100.0,0.4608]
[1732306863526,0.073,99109.0,99100.0,0.4608]
[1732306864023,0.116,99114.0,99104.0,0.050398]
[1732306864226,0.116,99114.0,99107.0,0.050397]
[1732306864423,0.116,99118.0,99113.0,0.3608]
[1732306865025,0.04683412,99118.0,99110.0,0.0701]
[1732306865233,0.04683412,99118.0,99108.0,0.3608]
[1732306865425,0.04683412,99118.0,99101.0,0.0701]
[1732306865735,0.116,99118.0,99102.0,0.3608]
[1732306865923,0.05095172,99124.0,99118.0,0.050391]
[1732306866123,0.00108001,99138.0,99117.0,0.3608]
[1732306866327,0.00151343,99162.0,99117.0,0.3608]
[1732306866328,0.05120319,99145.0,99128.0,0.411186]
[1732306866526,0.0747,99149.0,99128.0,0.411186]
[1732306867033,0.0747,99149.0,99128.0,0.3608]
[1732306867222,0.0747,99149.0,99148.0,0.7216]
[1732306867633,0.42683873,99149.0,99148.0,0.7216]
[1732306868035,0.42683873,99149.0,99138.0,0.3608]
[1732306868329,0.42427873,99149.0,99138.0,0.3608]
[1732306868534,0.3026,99148.0,99138.0,0.3608]
[1732306868836,0.3026,99147.0,99138.0,0.3608]
[1732306869023,0.3026,99148.0,99138.0,0.3608]
[1732306869424,0.3026,99147.0,99138.0,0.3608]
[1732306869828,0.3026,99146.0,99138.0,0.3608]
[1732306870029,0.3026,99148.0,99138.0,0.3608]
[1732306870228,0.050377,99147.0,99138.0,0.3608]
[1732306870830,0.3026,99146.0,99138.0,0.3608]
[1732306871130,0.050378,99144.0,99138.0,0.3608]
[1732306871430,0.050379,99143.0,99138.0,0.3608]
[1732306871823,0.3026,99142.0,99138.0,0.3608]
[1732306872334,0.3026,99141.0,99138.0,0.3608]
[1732306872533,0.3026,99140.0,99138.0,0.3608]
[1732306872739,0.3026,99141.0,99138.0,0.3608]
[1732306873127,0.3026,99140.0,99138.0,0.3608]
[1732306873527,0.3026,99139.0,99138.0,0.3608]
[1732306874037,0.11596,99141.0,99138.0,0.3608]
[1732306875431,0.11596,99142.0,99139.0,0.05038]
[1732306875629,0.12427873,99149.0,99148.0,0.050376]
[1732306875825,0.11596,99154.0,99147.0,0.3608]
[1732306876146,0.11596,99156.0,99151.0,0.050374]
[1732306876326,0.0745,99168.0,99155.0,0.411172]
[1732306876529,0.05120788,99164.0,99155.0,0.3608]
[1732306876734,0.11596,99163.0,99155.0,0.3608]
[1732306877134,0.33844,99174.0,99155.0,0.3608]
[1732306877337,0.11596,99173.0,99161.0,0.3608]
[1732306877534,0.33844,99174.0,99161.0,0.3608]
[1732306877835,0.09718794,99200.0,99161.0,0.3608]
[1732306877836,0.3608,99232.0,99162.0,0.050369]
[1732306878033,0.11596,99222.0,99175.0,0.3608]
[1732306878342,0.11596,99222.0,99221.0,0.3608]
[1732306878533,0.0695,99231.0,99221.0,0.3608]